bitfinex-derivatives/quotes_SOLF0:USTF0_20250625
["timestamp","ask_amount","ask_price","bid_price","bid_amount"]
[1750888813207,5.31325952,144.25,144.19,4.39589856]
[1750888813413,4.39589856,144.26,144.19,4.39589856]
[1750888813716,6.93,144.23,144.19,6.931]
[1750888814106,4.39589856,144.26,144.19,6.931]
[1750888814107,6.9301,144.22,144.19,6.931]
[1750888816717,4.39589856,144.24,144.18,6.9317]
[1750888816909,4.39589856,144.22,144.15,4.39589856]
[1750888817216,4.39589856,144.22,144.14,34.64]
[1750888817420,6.9317,144.19,144.14,34.64]
[1750888817820,4.39589856,144.22,144.17,6.9321]
[1750888817821,6.9313,144.2,144.17,6.9321]
[1750888818119,4.39589856,144.22,144.17,6.9321]
[1750888818426,4.39589856,144.22,144.14,34.64]
[1750888818816,6.9319,144.19,144.16,6.9326]
[1750888819313,6.932,144.18,144.15,6.9332]
[1750888820820,4.39589856,144.21,144.14,41.5736]
[1750888821122,4.39589856,144.17,144.09,39.03589856]
[1750888821312,39.03589856,144.17,144.06,4.8456]
[1750888821518,4.39589856,144.15,144.07,39.03589856]
[1750888822021,4.39589856,144.13,144.07,34.64]
[1750888822230,34.64,144.13,144.07,34.64]
[1750888822423,39.03589856,144.13,144.07,34.64]
[1750888822721,6.9351,144.12,144.09,6.9359]
[1750888822922,39.03589856,144.13,144.07,34.64]
[1750888823321,6.9354,144.11,144.08,6.9365]
[1750888824025,6.935,144.12,144.09,6.9362]
[1750888824829,6.9354,144.11,144.08,6.9365]
[1750888825030,34.64,144.13,144.07,34.64]
[1750888825340,6.9368,144.08,144.06,6.9376]
[1750888825538,9.13109856,144.12,144.03,39.05589856]
[1750888825838,6.936,144.1,144.03,39.05589856]
[1750888826334,6.936,144.1,144.07,6.937]
[1750888827135,6.9363,144.09,144.03,39.05589856]
[1750888827337,9.13109856,144.12,144.03,39.05589856]
[1750888828133,6.78019856,144.12,144.03,39.05589856]
[1750888828329,6.9357,144.11,144.07,6.9368]
[1750888828725,2.3843,144.12,144.07,6.9368]
[1750888828935,34.64,144.13,144.05,4.39589856]
[1750888829437,6.9352,144.12,144.05,4.39589856]
[1750888829734,34.64,144.13,144.05,4.39589856]
[1750888830331,34.64,144.13,144.07,6.9369]
[1750888830638,4.39589856,144.12,144.04,4.39589856]
[1750888831539,6.9363,144.09,144.06,6.9374]
[1750888832444,4.39589856,144.12,144.06,6.9376]
[1750888832939,6.9366,144.09,144.06,6.9376]
[1750888833135,4.39589856,144.12,144.05,6.938]
[1750888833531,34.64,144.13,144.04,4.39589856]
[1750888834140,6.9358,144.1,144.04,4.39589856]
[1750888834736,6.9358,144.1,144.07,6.9372]
[1750888836437,6.9365,144.09,144.06,6.9373]
[1750888836644,4.39589856,144.12,144.06,6.9373]
[1750888836839,4.39589856,144.12,144.03,34.66]
[1750888837230,6.936,144.1,144.07,6.937]
[1750888838846,6.9355,144.11,144.08,6.9367]
[1750888840041,41.5746,144.13,144.1,6.9355]
[1750888840348,4.7187,144.15,144.08,35.12]
[1750888840548,4.7187,144.15,144.07,35.12]
[1750888841138,6.9347,144.13,144.09,6.9359]
[1750888841435,6.9347,144.13,144.07,35.12]
[1750888841938,6.935,144.12,144.07,35.12]
[1750888842346,6.935,144.12,144.09,6.936]
[1750888842547,6.9346,144.13,144.07,35.12]
[1750888843446,6.9349,144.12,144.09,6.9358]
[1750888847646,6.9349,144.12,144.07,35.12]
[1750888847855,6.9346,144.13,144.07,35.12]
[1750888848151,6.9346,144.13,144.08,4.8576]
[1750888848746,6.9346,144.13,144.1,6.9356]
[1750888850657,35.12,144.16,144.08,9.25349856]
[1750888851149,6.9348,144.13,144.1,6.9357]
[1750888851544,35.12,144.16,144.1,6.9357]
[1750888852160,6.9349,144.12,144.1,6.9357]
[1750888852654,4.39589856,144.15,144.07,35.12]
[1750888852851,4.39589856,144.13,144.07,35.12]
[1750888853045,4.39589856,144.13,144.07,42.057]
[1750888853245,4.39589856,144.13,144.07,35.12]
[1750888853445,35.12,144.12,144.05,4.39589856]
[1750888854545,6.9365,144.09,144.05,4.39589856]
[1750888855455,6.9365,144.09,144.07,6.937]
[1750888856461,6.9361,144.1,144.05,4.39589856]
[1750888856755,39.8915,144.15,144.05,4.39589856]
[1750888857152,6.9351,144.12,144.09,6.936]
[1750888857354,6.9351,144.12,144.08,35.12]
[1750888857754,6.9346,144.13,144.1,6.9355]
[1750888859462,6.934,144.14,144.09,4.39589856]
[1750888859659,6.934,144.14,144.09,6.71569856]
[1750888860158,35.22,144.18,144.09,2.3198]
[1750888860363,4.39589856,144.16,144.09,2.3198]
[1750888860662,6.9345,144.13,144.1,6.9355]
[1750888861456,6.9341,144.14,144.11,6.9353]
[1750888862364,6.9341,144.14,144.11,6.935]
[1750888862565,6.9336,144.15,144.09,2.3198]
[1750888862766,4.39589856,144.16,144.09,2.3198]
[1750888862966,5.06042231,144.15,144.11,6.9351]
[1750888863167,6.9342,144.14,144.11,6.9351]
[1750888866772,6.9344,144.13,144.11,6.9351]
[1750888867267,6.9341,144.14,144.11,6.9351]
[1750888867671,6.9341,144.14,144.12,6.9348]
[1750888868669,35.22,144.18,144.1,4.39589856]
[1750888868874,35.22,144.18,144.12,39.61589856]
[1750888869370,6.9325,144.17,144.14,6.9336]
[1750888869568,4.6146,144.19,144.12,39.61589856]
[1750888869773,6.88636264,144.2,144.12,39.61589856]
[1750888869974,6.9327,144.17,144.14,6.9336]
[1750888870277,6.88636264,144.2,144.12,39.61589856]
[1750888870574,6.9322,144.18,144.15,6.933]
[1750888871079,6.9317,144.19,144.16,6.9329]
[1750888871267,2.3361,144.2,144.16,6.9329]
[1750888871468,2.3361,144.2,144.12,39.61589856]
[1750888871669,6.9324,144.18,144.12,39.61589856]
[1750888872269,2.3361,144.2,144.15,6.9334]
[1750888872782,2.3361,144.2,144.14,6.9336]
[1750888873376,5.0793158,144.19,144.14,6.9336]
[1750888873568,6.88378845,144.2,144.14,6.9336]
[1750888873774,5.0793505,144.19,144.14,6.9336]
[1750888873976,2.3361,144.2,144.14,6.9336]
[1750888874271,6.9332,144.16,144.14,6.9336]
[1750888877485,4.39589856,144.19,144.12,35.22]
[1750888877686,5.1076986,144.18,144.12,35.22]
[1750888877882,4.39589856,144.19,144.12,35.22]
[1750888878083,6.9341,144.14,144.12,42.1546]
[1750888878682,6.9344,144.13,144.11,6.9352]
[1750888879681,6.9349,144.12,144.1,6.9355]
[1750888879880,6.9349,144.12,144.09,35.22]
[1750888880190,4.39589856,144.15,144.09,42.156]
[1750888880778,5.11472162,144.14,144.09,42.156]
[1750888880974,8.99640948,144.15,144.09,42.156]
[1750888881176,6.9354,144.11,144.09,42.156]
[1750888881582,5.11485379,144.14,144.09,42.156]
[1750888881784,6.9351,144.12,144.09,42.156]
[1750888882475,6.9351,144.12,144.1,6.9357]
[1750888884089,6.9351,144.12,144.09,6.9361]
[1750888884287,8.98543047,144.15,144.09,6.9361]
[1750888884288,6.9353,144.11,144.09,6.9361]
[1750888885485,6.9351,144.12,144.1,6.9357]
[1750888885884,6.9351,144.12,144.07,3.46429027]
[1750888886191,6.9355,144.11,144.09,6.936]
[1750888886887,6.935,144.12,144.1,6.9358]
[1750888887886,6.935,144.12,144.09,6.936]
[1750888888291,6.935,144.12,144.07,3.46429027]
[1750888888483,6.935,144.12,144.09,6.9359]
[1750888891096,6.9354,144.11,144.09,6.9359]
[1750888891993,3.46429027,144.15,144.08,6.9365]
[1750888892194,5.09981284,144.14,144.08,6.9365]
[1750888892493,3.46429027,144.15,144.08,6.9365]
[1750888892695,6.9356,144.11,144.08,6.9365]
[1750888894891,6.9359,144.1,144.08,6.9365]
[1750888895898,6.9356,144.11,144.08,6.9365]
[1750888896301,6.9356,144.11,144.09,6.936]
[1750888897803,6.9352,144.12,144.09,6.936]
[1750888898203,3.46429027,144.13,144.06,12.93651599]
[1750888898410,6.9357,144.11,144.05,16.40080626]
[1750888898699,3.46429027,144.13,144.08,6.9367]
[1750888898890,6.9357,144.11,144.08,6.9367]
[1750888899291,3.46429027,144.11,144.04,48.25651599]
[1750888899494,3.46429027,144.11,144.04,35.32]
[1750888899901,6.9372,144.08,144.05,6.938]
[1750888900401,4.6202,144.12,144.04,35.32]
[1750888900604,6.9365,144.09,144.05,3.46429027]
[1750888900994,6.9365,144.09,144.06,6.9374]
[1750888903216,8.08449027,144.12,144.04,35.32]
[1750888903512,3.46429027,144.1,144.04,35.32]
[1750888903809,6.938,144.06,144.03,6.939]
[1750888904009,35.32,144.09,144.02,7.2928]
[1750888904412,35.32,144.09,144.04,6.9384]
[1750888904812,6.9376,144.07,144.04,6.9384]
[1750888905212,35.32,144.09,144.05,6.9379]
[1750888905915,6.9372,144.08,144.05,6.9379]
[1750888907807,35.32,144.09,144.04,6.9385]
[1750888908413,6.9377,144.07,144.04,6.9385]
[1750888911118,6.9378,144.06,144.03,6.9389]
[1750888913620,6.9383,144.05,144.02,14.2323]
[1750888913820,35.32,144.05,143.98,5.6631612]
[1750888914020,3.46926128,144.04,143.98,5.6631612]
[1750888914219,3.46926128,144.04,143.98,12.6045612]
[1750888914424,3.46926128,144.02,143.98,5.6631612]
[1750888914833,6.9405,144.01,143.98,5.6631612]
[1750888915015,42.2605,144.01,143.98,5.6631612]
[1750888915221,35.32,144.01,143.98,5.6631612]
[1750888915422,3.46926128,144.0,143.93,5.78086128]
[1750888915718,6.9434,143.95,143.9,2.3051]
[1750888915917,35.32,143.95,143.85,12.93651599]
[1750888916112,8.23036128,143.94,143.83,12.93651599]
[1750888916317,8.23036128,143.94,143.82,12.93651599]
[1750888916516,4.7611,143.94,143.87,3.46926128]
[1750888916829,11.7049,143.94,143.85,37.0]
[1750888917021,3.46926128,143.97,143.89,3.46926128]
[1750888917214,37.02,143.97,143.89,3.46926128]
[1750888917418,13.06248832,144.01,143.93,3.46926128]
[1750888917613,41.9663,144.02,143.89,37.02]
[1750888917915,45.43556128,144.02,143.94,3.46926128]
[1750888918112,37.02,144.02,143.96,3.46926128]
[1750888918423,6.9402,144.01,143.97,6.9417]
[1750888918723,37.02,144.02,143.96,3.46926128]
[1750888919111,62.54750498,144.04,143.96,3.46926128]
[1750888919523,99.56710498,144.04,144.0,6.9403]
[1750888919824,92.62840498,144.04,144.0,6.9403]
[1750888920417,92.62840498,144.04,144.01,6.9401]
[1750888922326,43.9587,144.04,144.0,6.9405]
[1750888922528,43.9587,144.04,143.97,40.48926128]
[1750888922719,37.02,144.04,144.01,6.9401]
[1750888923032,37.02,144.04,143.97,40.48926128]
[1750888923423,37.02,144.04,144.02,6.9396]
[1750888923623,3.46926128,144.06,143.99,3.46926128]
[1750888924027,10.40726128,144.06,144.01,6.9401]
[1750888924431,6.9383,144.05,144.01,6.9401]
[1750888924726,3.46926128,144.06,144.0,6.9405]
[1750888925225,3.46926128,144.06,143.98,6.9414]
[1750888925422,3.46926128,144.04,143.95,3.46926128]
[1750888925625,6.9409,144.0,143.95,3.46926128]
[1750888925825,6.9409,144.0,143.96,6.9423]
[1750888926730,6.9412,143.99,143.96,6.9423]
[1750888926928,6.9412,143.99,143.95,6.9429]
[1750888928030,6.9417,143.98,143.95,6.9429]
[1750888929433,6.9413,143.99,143.96,6.9425]
[1750888929630,37.02,144.03,143.96,3.47070463]
[1750888930332,6.9405,144.01,143.97,6.9417]
[1750888931133,6.9405,144.01,143.96,3.47070463]
[1750888931134,6.9405,144.01,143.98,6.9415]
[1750888931332,3.47070463,144.05,143.97,3.47070463]
[1750888931631,3.47070463,144.05,143.99,6.9409]
[1750888932038,6.9396,144.03,143.97,3.47070463]
[1750888932341,42.88130463,144.06,143.99,6.9408]
[1750888932540,6.9399,144.02,143.99,6.9408]
[1750888933434,6.9403,144.01,143.98,6.9414]
[1750888933629,6.9403,144.01,143.97,3.47070463]
[1750888934233,6.9403,144.01,143.97,10.41240463]
[1750888934434,6.9403,144.01,143.97,3.47070463]
[1750888935037,6.9403,144.01,143.98,6.9413]
[1750888936243,6.9408,144.0,143.97,6.9419]
[1750888936639,6.9418,143.98,143.95,6.9428]
[1750888940345,6.9418,143.98,143.95,6.9429]
[1750888941042,6.9413,143.99,143.96,6.9425]
[1750888941633,6.9409,144.0,143.97,6.9417]
[1750888941841,37.02,144.03,143.95,3.47070463]
[1750888942050,37.02,144.03,143.97,3.47070463]
[1750888942250,6.9399,144.02,143.99,6.9408]
[1750888942946,43.9595,144.03,143.97,3.47070463]
[1750888943248,3.47070463,144.05,143.98,37.02]
[1750888943447,6.9392,144.04,144.0,6.9403]
[1750888943742,3.47070463,144.05,144.0,6.9403]
[1750888943942,6.9394,144.03,144.0,6.9403]
[1750888944746,3.47070463,144.05,143.99,6.9409]
[1750888945132,6.94,144.02,143.99,6.9409]
[1750888947150,6.9402,144.01,143.98,43.9613]
[1750888947839,6.9402,144.01,143.98,6.9413]
[1750888950854,6.9409,144.0,143.97,6.9417]
[1750888951344,6.9409,144.0,143.98,6.9415]
[1750888952048,6.9403,144.01,143.98,6.9415]
[1750888952749,6.9403,144.01,143.99,6.941]
[1750888953337,6.9399,144.02,143.95,41.25070463]
[1750888953540,37.78,144.04,143.97,3.47070463]
[1750888954049,6.9392,144.03,144.01,6.9401]
[1750888956650,40.1706,144.06,143.99,3.47070463]
[1750888956853,40.1706,144.06,143.99,41.25070463]
[1750888957050,6.9384,144.05,143.99,41.25070463]
[1750888957751,6.9384,144.05,144.03,6.9391]
[1750888958350,44.718,144.06,144.04,6.9386]
[1750888958656,37.78,144.06,144.01,3.47070463]
[1750888959042,6.9377,144.07,144.04,6.9385]
[1750888959246,45.882812,144.09,144.01,3.47070463]
[1750888959448,3.47070463,144.07,144.0,4.7744]
[1750888959749,3.47070463,144.07,143.99,37.78]
[1750888959945,6.9375,144.07,144.0,3.47070463]
[1750888960151,6.9375,144.07,144.0,5.81770463]
[1750888960543,6.9369,144.08,144.0,5.81770463]
[1750888960746,6.9369,144.08,144.02,3.47070463]
[1750888961447,6.9373,144.07,144.02,3.47070463]
[1750888962559,6.9373,144.07,144.04,6.9386]
[1750888963350,3.47070463,144.07,143.99,37.78]
[1750888963558,3.47070463,144.03,143.94,3.47070463]
[1750888963853,3.47070463,143.99,143.91,4.7779]
[1750888964158,3.47070463,143.95,143.9,96.86934365]
[1750888964350,3.47325882,144.0,143.92,3.47325882]
[1750888964549,44.8031,144.02,143.94,3.47325882]
[1750888964754,3.47325882,143.98,143.9,96.86934365]
[1750888964950,3.47325882,143.96,143.88,37.78]
[1750888965151,37.78,143.96,143.89,3.47325882]
[1750888965460,37.78,144.01,143.93,3.47325882]
[1750888965953,41.25325882,144.01,143.93,3.47325882]
[1750888966259,45.92651442,144.01,143.92,3.47071034]
[1750888966449,6.9419,143.98,143.94,6.9431]
[1750888966850,37.78,144.01,143.92,3.47071034]
[1750888967048,37.78,144.01,143.93,37.78]
[1750888967260,3.47071034,144.0,143.93,37.78]
[1750888967463,6.9424,143.97,143.93,37.78]
[1750888967656,6.9424,143.97,143.9,41.25071034]
[1750888967860,37.78,144.01,143.94,3.47071034]
[1750888968055,3.47071034,144.03,143.94,37.78]
[1750888968360,3.47071034,143.97,143.91,7.096]
[1750888968860,41.25071034,143.99,143.93,6.9436]
[1750888969057,3.47071034,143.97,143.9,37.78]
[1750888969262,6.9434,143.95,143.91,6.9447]
[1750888970256,37.78,143.99,143.91,3.47071034]
[1750888970560,37.78,143.99,143.93,3.47071034]
[1750888970757,10.62301034,144.01,143.87,20.01901151]
[1750888970758,7.1523,144.01,143.95,3.47071034]
[1750888971062,37.78,144.03,143.94,37.78]
[1750888971262,3.47071034,144.0,143.94,37.78]
[1750888971464,3.47071034,143.96,143.9,37.78]
[1750888971865,6.9428,143.96,143.9,37.78]
[1750888972459,6.9423,143.97,143.93,6.9437]
[1750888973364,42.4659,143.99,143.91,5.20878269]
[1750888973563,37.78,143.99,143.9,46.40519204]
[1750888973763,37.78,143.99,143.94,6.9432]
[1750888974558,6.942,143.98,143.94,6.9432]
[1750888974871,37.78,143.99,143.93,6.944]
[1750888975067,6.9425,143.97,143.93,6.944]
[1750888975560,42.98878269,143.99,143.92,8.62519204]
[1750888975858,2.3675,143.98,143.91,8.62519204]
[1750888976263,9.3095,143.98,143.94,6.9432]
[1750888976761,44.7213,143.99,143.96,6.9425]
[1750888977363,37.78,143.99,143.96,6.9425]
[1750888977560,6.9408,144.0,143.96,6.9425]
[1750888978662,38.06,144.02,143.94,38.06]
[1750888978663,6.9403,144.01,143.94,38.06]
[1750888978865,6.9403,144.01,143.94,46.68519204]
[1750888979055,6.9403,144.01,143.98,6.9413]
[1750888979253,38.06,144.02,143.95,13.83398299]
[1750888979767,38.06,144.02,143.98,6.9415]
[1750888979953,6.9404,144.01,143.98,6.9415]
[1750888980469,5.20879095,144.01,143.96,8.62519204]
[1750888980657,38.06,144.02,143.92,11.00809204]
[1750888980851,5.20879095,144.01,143.93,8.62519204]
[1750888981055,6.9414,143.99,143.95,6.9428]
[1750888981265,5.20879095,144.01,143.95,6.9428]
[1750888981767,38.06,144.02,143.94,13.83398299]
[1750888981961,5.20879095,143.99,143.93,8.62519204]
[1750888982163,5.20879095,143.99,143.92,8.62519204]
[1750888982358,5.20879095,143.97,143.91,46.68519204]
[1750888982558,40.4964,143.98,143.91,46.68519204]
[1750888982854,38.06,143.98,143.91,46.68519204]
[1750888983059,5.20879095,144.01,143.91,46.68519204]
[1750888983060,38.06,144.01,143.93,8.62519204]
[1750888983364,38.06,144.01,143.94,5.20879095]
[1750888983666,9.3481,144.02,143.99,6.941]
[1750888983867,2.4081,144.02,143.95,38.06]
[1750888984060,2.3444,144.03,143.95,38.06]
[1750888984365,6.9397,144.02,143.99,6.9408]
[1750888984665,38.06,144.06,143.98,5.20879095]
[1750888984960,38.06,144.06,143.96,2.412]
[1750888984961,43.83991817,144.06,143.96,2.412]
[1750888985466,6.9386,144.05,144.02,6.9394]
[1750888985765,43.83991817,144.06,143.97,5.77991817]
[1750888985965,43.83991817,144.06,143.96,2.412]
[1750888986357,6.9395,144.03,144.0,6.9404]
[1750888986966,6.9398,144.02,143.96,2.412]
[1750888987169,5.77991817,144.04,143.95,38.06]
[1750888987361,6.9394,144.03,144.0,6.9404]
[1750888987864,38.06,144.06,143.97,5.78082276]
[1750888988066,38.06,144.06,143.99,5.78082276]
[1750888988263,2.4081,144.07,143.99,43.84082276]
[1750888988565,50.08228871,144.09,144.01,5.78082276]
[1750888988760,40.4616,144.09,144.0,12.60066551]
[1750888989167,40.4616,144.09,144.04,6.9384]
[1750888989358,40.4616,144.09,144.0,12.60066551]
[1750888989560,55.87620322,144.09,144.0,8.01846551]
[1750888989760,6.9374,144.07,144.03,6.9388]
[1750888989962,40.4616,144.09,144.01,5.77766551]
[1750888990464,6.9375,144.07,144.03,6.939]
[1750888990863,6.9375,144.07,144.01,5.77766551]
[1750888991169,6.9375,144.07,144.0,2.2408]
[1750888991470,6.937,144.08,144.0,8.01846551]
[1750888991769,6.937,144.08,144.04,6.9383]
[1750888991969,6.9376,144.07,144.02,5.77766551]
[1750888992173,6.9376,144.07,144.0,8.01846551]
[1750888992366,40.4616,144.09,144.03,6.9389]
[1750888992572,6.9374,144.07,144.0,8.01846551]
[1750888992775,46.23926551,144.09,144.0,2.2408]
[1750888993173,6.9381,144.06,144.0,2.2408]
[1750888993374,46.23926551,144.09,144.02,6.9394]
[1750888993771,6.938,144.06,144.02,6.9394]
[1750888993971,46.23926551,144.09,144.0,2.2408]
[1750888994273,6.9373,144.07,144.01,5.77766551]
[1750888994468,40.4616,144.09,144.05,6.9379]
[1750888994683,103.62317862,144.1,144.05,6.9379]
[1750888994865,103.62317862,144.1,144.03,5.77766551]
[1750888995070,4.9122,144.11,144.03,43.81766551]
[1750888995373,47.2457,144.13,144.05,5.77766551]
[1750888995573,38.04,144.16,144.11,6.9351]
[1750888995777,38.04,144.16,144.07,43.81766551]
[1750888996273,38.04,144.16,144.1,6.9355]
[1750888996477,5.77766551,144.15,144.07,38.04]
[1750888996779,38.04,144.16,144.09,5.77766551]
[1750888997275,38.04,144.16,144.11,6.9351]
[1750888997576,6.9338,144.15,144.09,5.77766551]
[1750888997762,2.483,144.17,144.09,5.77766551]
[1750888997968,6.9343,144.14,144.08,6.9079]
[1750888998470,6.9343,144.14,144.09,6.936]
[1750888998675,6.9347,144.13,144.09,6.936]
[1750888998978,6.9347,144.13,144.1,6.9358]
[1750888999179,6.9341,144.14,144.09,5.77766551]
[1750888999373,8.26066551,144.17,144.09,5.77766551]
[1750888999771,6.9342,144.14,144.09,5.77766551]
[1750888999974,8.26066551,144.17,144.09,5.77766551]
[1750889000173,6.9341,144.14,144.1,6.9354]
[1750889000574,8.26066551,144.17,144.09,5.77766551]
[1750889000778,6.9349,144.12,144.09,12.71366551]
[1750889001578,43.81766551,144.15,144.07,38.04]
[1750889002171,6.9356,144.11,144.08,6.9365]
[1750889002373,43.81766551,144.15,144.07,38.04]
[1750889002878,5.77766551,144.13,144.05,38.04]
[1750889003184,5.77766551,144.11,144.05,38.04]
[1750889003677,5.77766551,144.09,143.97,12.92301151]
[1750889003873,5.77766551,144.07,143.99,146.6277565]
[1750889004193,6.9396,144.03,144.0,6.9404]
[1750889004675,6.9397,144.02,144.0,6.9404]
[1750889004982,6.9397,144.02,143.99,146.6277565]
[1750889005380,5.77766551,144.05,143.99,153.5686565]
[1750889005979,6.94,144.02,143.99,153.5686565]
[1750889006273,6.94,144.02,143.99,146.6277565]
[1750889006670,2.483,144.05,143.99,153.5685565]
[1750889006880,2.483,144.05,143.99,108.5877565]
[1750889007085,6.9404,144.01,143.99,108.5877565]
[1750889007281,6.9404,144.01,143.98,6.9413]
[1750889007483,6.9404,144.01,143.96,43.81766551]
[1750889007684,6.9399,144.02,143.99,6.9408]
[1750889008385,4.9022,144.05,143.96,43.81766551]
[1750889009085,6.94,144.02,143.99,6.9409]
[1750889009485,6.9404,144.01,143.98,6.9412]
[1750889010674,5.77766551,144.04,143.96,38.04]
[1750889010879,8.03776551,144.04,143.96,38.04]
[1750889011485,8.03776551,144.04,143.97,6.9417]
[1750889011980,8.03776551,144.04,143.96,38.04]
[1750889011981,8.03776551,144.04,143.98,6.9415]
[1750889012187,6.94,144.02,143.96,38.04]
[1750889012695,6.9406,144.01,143.98,6.9414]
[1750889012898,8.03776551,144.04,143.96,38.04]
[1750889013197,6.9404,144.01,143.98,6.9415]
[1750889013595,2.2601,144.04,143.96,38.04]
[1750889013789,6.9403,144.01,143.98,6.9414]
[1750889013993,2.2601,144.04,143.96,38.04]
[1750889014195,38.04,144.06,143.97,5.78112803]
[1750889014591,12.89212803,144.09,143.99,5.78112803]
[1750889014891,50.69212803,144.09,144.0,37.8]
[1750889016299,6.9385,144.05,144.02,6.9394]
[1750889016799,6.9385,144.05,144.03,6.9392]
[1750889017490,6.9385,144.05,144.02,6.9394]
[1750889018890,6.9385,144.05,144.03,6.9391]
[1750889019095,6.9378,144.06,144.0,37.8]
[1750889019487,50.69212803,144.09,144.0,37.8]
[1750889019703,42.5556,144.09,144.01,5.78112803]
[1750889019887,42.5556,144.09,144.01,12.97862803]
[1750889020088,37.8,144.09,144.03,5.78112803]
[1750889020302,37.8,144.12,144.03,5.78112803]
[1750889020499,37.8,144.12,144.04,37.8]
[1750889021297,37.8,144.12,144.06,6.9375]
[1750889021790,6.9362,144.1,144.06,6.9375]
[1750889021995,37.8,144.12,144.06,6.9375]
[1750889022895,6.9365,144.09,144.06,6.9375]
[1750889024401,6.9368,144.08,144.04,37.8]
[1750889024805,6.9375,144.07,144.01,189.89340003]
[1750889025397,6.9375,144.07,144.04,6.9383]
[1750889026007,6.9378,144.06,144.03,6.939]
[1750889026205,43.55851798,144.08,144.01,37.78]
[1750889026398,43.55851798,144.08,143.98,37.78]
[1750889026399,5.77851798,144.06,143.98,37.78]
[1750889026599,6.9389,144.04,144.0,6.9402]
[1750889026802,5.77851798,144.06,144.0,6.9402]
[1750889027403,6.939,144.04,144.01,6.9401]
[1750889027907,5.78138917,144.05,143.98,37.78]
[1750889028215,37.78,144.04,143.98,37.78]
[1750889028410,6.9402,144.01,143.98,44.7212]
[1750889028612,37.78,144.04,143.98,37.78]
[1750889029010,6.9399,144.02,143.99,6.9408]
[1750889030714,6.9393,144.03,144.0,6.9405]
[1750889031014,44.9079,144.07,143.99,5.78138917]
[1750889031916,6.9386,144.05,144.01,6.9397]
[1750889032117,6.9386,144.05,143.99,5.78138917]
[1750889032419,6.9386,144.05,144.02,6.9394]
[1750889032615,6.9379,144.06,143.99,5.78138917]
[1750889032919,6.9379,144.06,144.03,6.9391]
[1750889034011,6.9383,144.05,144.02,6.9395]
[1750889035016,6.9379,144.06,144.03,6.9392]
[1750889035318,37.78,144.07,143.99,5.78138917]
[1750889036212,6.9385,144.05,144.02,6.9393]
[1750889036410,37.78,144.07,143.99,5.78138917]
[1750889037610,6.9389,144.04,144.01,6.9399]
[1750889038316,6.9392,144.03,144.0,6.9404]
[1750889038718,6.9397,144.02,143.99,6.9409]
[1750889038908,3.46837493,144.05,143.98,37.78]
[1750889039511,6.9397,144.02,143.99,6.9409]
[1750889040723,6.9403,144.01,143.98,44.7213]
[1750889041021,40.70837493,144.03,143.96,4.6919]
[1750889041722,6.9404,144.01,143.98,6.9413]
[1750889042318,6.9404,144.01,143.99,6.9411]
[1750889042516,6.94,144.02,143.99,6.9411]
[1750889042724,37.24,144.03,143.97,3.46837493]
[1750889043420,6.9397,144.02,143.99,6.9409]
[1750889045017,6.9397,144.02,144.0,6.9406]
[1750889045219,44.1794,144.03,144.0,6.9406]
[1750889045623,6.9399,144.02,143.99,6.9409]
[1750889047021,37.24,144.03,143.97,6.9419]
[1750889047230,3.46837493,144.02,143.95,37.24]
[1750889048118,6.9418,143.98,143.96,6.9425]
[1750889048627,3.46837493,144.02,143.96,6.9425]
[1750889048926,6.9415,143.99,143.96,6.9425]
[1750889049121,3.46837493,144.02,143.96,6.9425]
[1750889049526,6.9418,143.98,143.96,6.9425]
[1750889049720,3.46837493,144.0,143.95,44.1828]
[1750889050123,6.9423,143.97,143.95,44.1828]